bitfinex/quotes_ETHUSD_20250904
["timestamp","ask_amount","ask_price","bid_price","bid_amount"]
[1756962150863,0.4526,4388.4,4388.1,4.225]
[1756962151039,0.1136,4388.2,4388.1,4.225]
[1756962151230,0.4072,4388.2,4388.1,4.225]
[1756962151425,0.8598,4388.2,4388.1,4.225]
[1756962151731,0.1136,4388.2,4388.1,4.225]
[1756962152348,0.4072,4388.2,4388.1,4.225]
[1756962152548,0.4072,4388.2,4387.3,1.752]
[1756962152549,2.27895326,4388.0,4387.8,4.211]
[1756962152749,0.8598,4387.9,4387.7,4.211]
[1756962153057,0.8598,4387.9,4387.7,4.21]
[1756962153234,0.5662,4387.8,4387.3,1.752]
[1756962153442,0.5662,4387.8,4386.8,0.029]
[1756962153443,0.1136,4387.4,4386.8,0.029]
[1756962153627,0.4526,4387.3,4386.9,2.29]
[1756962153832,0.2936,4387.0,4386.9,2.29]
[1756962154032,0.1136,4387.0,4386.9,2.29]
[1756962154345,0.1136,4387.0,4386.8,0.029]
[1756962157075,0.5662,4387.0,4386.8,0.029]
[1756962157566,0.2936,4386.9,4386.8,0.029]
[1756962157863,0.1136,4387.0,4386.8,0.029]
[1756962158868,0.1136,4387.0,4386.9,0.7894]
[1756962159192,0.1136,4387.6,4386.9,0.903]
[1756962159368,0.1136,4387.6,4386.8,0.029]
[1756962159369,0.2936,4387.0,4386.8,0.029]
[1756962159545,0.4526,4387.3,4386.8,0.029]
[1756962159546,0.4526,4387.3,4387.0,4.196]
[1756962159740,0.1136,4387.1,4387.0,4.196]
[1756962160076,0.9205,4387.8,4387.0,4.196]
[1756962160077,0.1136,4387.4,4387.0,4.196]
[1756962160287,0.1136,4387.4,4386.8,0.1426]
[1756962160288,0.4072,4387.1,4386.8,0.029]
[1756962160493,0.4526,4387.0,4386.8,4.225]
[1756962160771,0.2936,4386.9,4386.8,4.225]
[1756962162769,0.7462,4386.9,4386.8,4.225]
[1756962163291,0.2936,4386.9,4386.8,4.225]
[1756962163991,0.2936,4386.9,4386.8,0.029]
[1756962164188,0.2936,4386.9,4386.8,4.218]
[1756962164348,0.1136,4387.1,4386.8,4.218]
[1756962164549,0.5662,4387.1,4386.8,4.218]
[1756962164942,0.2936,4386.9,4386.8,4.218]
[1756962165347,0.7462,4386.9,4386.8,4.218]
[1756962165579,0.7462,4386.9,4386.8,0.029]
[1756962166282,0.1136,4387.1,4386.8,0.3204]
[1756962166451,0.1136,4387.4,4386.9,0.8709]
[1756962166647,0.1136,4387.4,4387.3,0.2914]
[1756962166853,0.1136,4387.4,4387.3,6.74870617]
[1756962167072,0.1136,4387.4,4387.3,4.4694]
[1756962167279,0.1136,4387.4,4387.3,7.24670617]
[1756962167678,0.1136,4387.7,4387.5,2.27916094]
[1756962167977,0.1136,4387.7,4387.6,0.7894]
[1756962168391,0.1136,4387.7,4387.6,4.175]
[1756962169294,0.1136,4387.7,4387.6,4.4664]
[1756962172298,0.1136,4387.7,4387.6,6.74555033]
[1756962172915,0.1136,4387.7,4387.6,7.61645033]
[1756962173079,0.1136,4387.7,4387.6,8.78122021]
[1756962173512,0.1136,4388.7,4388.6,2.27862682]
[1756962173714,0.1136,4388.7,4388.6,6.72902682]
[1756962173884,0.1136,4389.3,4388.6,5.3213]
[1756962174070,0.1136,4389.3,4389.0,2.27839499]
[1756962174401,0.1136,4389.3,4389.1,4.157]
[1756962175297,0.1136,4389.3,4387.5,1.752]
[1756962175298,0.2936,4389.2,4387.5,1.752]
[1756962175499,0.2936,4389.2,4386.0,1.63892908]
[1756962175500,2.27946533,4387.0,4386.0,1.63892908]
[1756962175701,0.2936,4386.9,4386.0,4.17]
[1756962175866,3.493614,4386.9,4386.0,4.17]
[1756962176065,3.493614,4386.9,4386.5,4.175]
[1756962176268,3.025714,4386.9,4386.5,4.175]
[1756962176469,6.49919896,4386.9,4385.8,0.025]
[1756962176696,6.493614,4386.9,4386.1,1.693]
[1756962181213,6.493614,4386.9,4385.8,0.025]
[1756962182414,0.4679,4387.0,4386.8,0.3158]
[1756962182582,3.521214,4386.9,4386.8,0.029]
[1756962182782,3.52679896,4386.9,4386.8,0.029]
[1756962184147,3.521214,4386.9,4386.8,0.029]
[1756962184326,10.216114,4386.9,4386.8,0.029]
[1756962185599,10.329714,4386.9,4386.8,0.029]
[1756962186426,10.321714,4386.9,4386.8,0.029]
[1756962187193,7.2716,4386.9,4386.8,0.029]
[1756962187614,9.551114,4386.9,4386.8,0.029]
[1756962190431,0.1136,4386.9,4386.8,0.3158]
[1756962190637,0.1136,4386.9,4386.8,0.7716]
[1756962191200,0.1136,4386.9,4386.8,0.3158]
[1756962191832,0.1136,4386.9,4386.8,0.029]
[1756962192538,2.706814,4386.9,4386.8,0.029]
[1756962192736,3.163714,4386.9,4386.8,0.029]
[1756962193034,7.773814,4386.9,4386.8,0.029]
[1756962194221,7.302714,4386.9,4386.8,0.029]
[1756962194741,4.5663,4386.9,4386.8,0.029]
[1756962194925,0.1136,4386.9,4386.8,0.029]
[1756962195113,0.1136,4386.9,4386.8,0.3158]
[1756962195436,4.2456,4386.9,4386.8,0.7716]
[1756962195614,4.2446,4386.9,4386.8,0.7716]
[1756962196505,0.1136,4386.9,4386.8,0.7716]
[1756962198241,0.1136,4386.9,4386.8,0.029]
[1756962200208,7.75939896,4386.9,4386.8,0.029]
[1756962200539,10.753814,4386.9,4386.8,0.029]
[1756962200739,10.753814,4386.9,4386.3,0.004]
[1756962200740,23.95839894,4386.4,4386.3,0.004]
[1756962200926,28.19299894,4386.4,4386.3,0.004]
[1756962201253,29.75985166,4386.4,4386.3,0.004]
[1756962201543,29.75985166,4386.4,4385.8,0.025]
[1756962201544,2.28003374,4385.9,4385.8,0.025]
[1756962201707,11.26743374,4385.9,4385.8,0.025]
[1756962202050,11.92363374,4385.9,4385.8,0.025]
[1756962202229,11.92163374,4385.9,4385.8,0.025]
[1756962202743,12.71788646,4385.9,4385.8,0.025]
[1756962205514,36.77749607,4385.9,4385.8,0.025]
[1756962207632,32.65949607,4385.9,4385.8,0.025]
[1756962207819,36.76349607,4385.9,4385.8,0.025]
[1756962208148,32.65949607,4385.9,4385.8,0.025]
[1756962208458,36.29139607,4385.9,4385.8,0.025]
[1756962208610,36.76249607,4385.9,4385.8,0.025]
[1756962209164,36.76049607,4385.9,4385.8,0.025]
[1756962211157,2.2802937,4385.4,4385.3,0.004]
[1756962211318,9.3772937,4385.4,4385.3,0.004]
[1756962211519,10.93814642,4385.4,4385.3,0.004]
[1756962211941,5.2803457,4385.3,4385.1,0.68859026]
[1756962212142,2.28055371,4384.9,4384.8,1e-08]
[1756962212327,2.28055371,4384.9,4383.4,0.4813]
[1756962212328,5.28060572,4384.8,4383.4,0.4813]
[1756962212650,2.39547392,4383.9,4383.4,0.4813]
[1756962212851,11.54255888,4383.9,4383.0,0.4813]
[1756962213014,11.24547392,4383.9,4383.0,0.4813]
[1756962213222,11.24547392,4383.9,4383.8,0.3354]
[1756962213430,7.14847392,4383.9,4383.8,0.025]
[1756962213636,11.24347392,4383.9,4383.8,0.025]
[1756962213859,11.24247392,4383.9,4383.8,0.3354]
[1756962214049,11.24247392,4383.9,4383.8,0.025]
[1756962214254,36.36303625,4383.9,4383.8,0.025]
[1756962214576,11.54297392,4383.9,4383.8,0.025]
[1756962214747,4.8674,4383.9,4383.8,0.025]
[1756962214930,4.8674,4383.9,4383.8,0.8167]
[1756962214931,8.9684,4383.9,4383.8,0.8167]
[1756962215137,11.24947392,4383.9,4383.8,0.025]
[1756962215537,11.87087392,4383.9,4383.8,0.025]
[1756962215733,11.98527392,4383.9,4383.8,0.025]
[1756962216362,11.25347392,4383.9,4383.8,0.3354]
[1756962216868,11.98927392,4383.9,4383.8,0.025]
[1756962217183,12.48917392,4383.9,4383.8,0.025]
[1756962217370,11.98927392,4383.9,4383.8,0.025]
[1756962217734,11.98727392,4383.9,4383.8,0.025]
[1756962219088,12.48717392,4383.9,4383.8,0.025]
[1756962219291,13.27917392,4383.9,4383.8,0.025]
[1756962220060,13.27917392,4383.9,4382.8,0.025]
[1756962220061,2.28159437,4382.9,4382.8,0.025]
[1756962220255,35.20178894,4382.9,4382.8,0.025]
[1756962220462,35.93200398,4382.9,4382.8,0.025]
[1756962220992,35.93200398,4382.9,4381.9,0.5]
[1756962220993,2.28206298,4382.0,4381.9,0.5]
[1756962221160,9.38306298,4382.0,4381.9,0.5]
[1756962221360,6.01786298,4382.0,4381.9,0.5]
[1756962221591,10.13086298,4382.0,4381.9,0.5]
[1756962221799,10.96936509,4382.0,4381.9,0.5]
[1756962222001,11.76136509,4382.0,4381.9,0.5]
[1756962222167,5.91316509,4382.0,4381.9,0.5]
[1756962222361,10.13186298,4382.0,4381.9,0.5]
[1756962222559,10.63186298,4382.0,4381.9,0.5]
[1756962222793,11.92376298,4382.0,4381.9,0.5]
[1756962222980,10.19556298,4382.0,4381.9,0.5]
[1756962223498,9.91106298,4382.0,4381.9,0.5]
[1756962223660,3.5,4382.0,4381.9,0.8104]
[1756962223861,7.128,4382.0,4381.9,1.2917]
[1756962224093,9.41006298,4382.0,4381.9,0.5]
[1756962224292,9.70256298,4382.0,4381.9,0.5]
[1756962224598,6.07411506,4381.9,4381.3,0.10609926]
[1756962224888,7.35591717,4381.9,4381.3,0.10609926]
[1756962225100,7.14851717,4381.9,4381.3,0.10609926]
[1756962225283,9.41111506,4381.9,4381.3,0.10609926]
[1756962225466,9.41211506,4381.9,4381.3,0.58739926]
[1756962226197,3.0,4381.9,4381.3,0.58739926]
[1756962226497,7.128,4381.9,4381.8,1.1896]
[1756962226963,7.128,4381.9,4381.8,0.8167]
[1756962227498,7.128,4381.9,4381.8,1.1896]
[1756962227792,7.128,4381.9,4381.8,0.3354]
[1756962228197,7.128,4381.9,4381.8,0.8167]
[1756962228395,3.0,4381.9,4381.8,1.1896]
[1756962228597,7.134,4381.9,4381.8,1.1896]
[1756962228785,7.134,4381.9,4381.8,0.3354]
[1756962228974,9.41611506,4381.9,4381.8,0.025]
[1756962229903,7.133,4381.9,4381.8,0.8167]
[1756962230087,3.1144,4381.9,4381.8,0.8167]
[1756962230292,7.2464,4381.9,4381.8,0.8167]
[1756962230607,7.2464,4381.9,4381.8,0.3354]
[1756962230765,7.2464,4381.9,4381.8,0.8167]
[1756962230968,7.2464,4381.9,4381.8,0.025]
[1756962231273,9.52851506,4381.9,4381.8,0.025]
[1756962231577,3.1144,4381.9,4381.8,0.8167]
[1756962232107,7.2464,4381.9,4381.8,0.025]
[1756962232482,9.52851506,4381.9,4381.8,0.025]
[1756962233507,9.41411506,4381.9,4381.8,0.025]
[1756962233805,7.132,4381.9,4381.8,0.025]
[1756962234112,3.0,4381.9,4381.8,0.3354]
[1756962234410,10.15150002,4381.9,4381.8,0.025]
[1756962234585,9.41011506,4381.9,4381.8,0.025]
[1756962235304,3.0,4381.9,4381.8,0.8167]
[1756962235503,7.126,4381.9,4381.8,0.8167]
[1756962236001,1.754,4382.8,4381.8,0.8167]
[1756962236205,2.28179337,4382.6,4381.8,0.8167]
[1756962236409,7.123,4382.7,4381.8,0.8167]
[1756962236606,9.40470366,4382.7,4381.8,0.8167]
[1756962236804,2.28176896,4382.6,4381.8,0.8167]
[1756962236971,1.754,4382.8,4381.9,0.4813]
[1756962237178,1.754,4383.5,4382.0,0.11896]
[1756962237372,6.40234797,4383.4,4382.5,2.28179834]
[1756962237605,6.40234797,4383.4,4382.6,0.4813]
[1756962237606,4.121,4383.4,4382.6,0.4813]
[1756962237775,4.121,4383.4,4383.3,0.3104]
[1756962237976,7.121,4383.4,4383.3,0.3104]
[1756962238273,3.0,4383.3,4383.0,0.4813]
[1756962238474,3.0,4383.1,4383.0,0.4813]
[1756962238670,4.12,4383.1,4383.0,0.7917]
[1756962239278,4.12,4383.3,4383.1,2.28146665]
[1756962239474,1.754,4384.2,4383.2,1.1646]
[1756962239680,4.118,4383.7,4383.2,1.1646]
[1756962239906,1.754,4384.2,4383.3,0.8542]
[1756962240278,4.03451192,4385.0,4383.7,2.566578]
[1756962240478,4.116,4384.3,4383.7,2.566578]
[1756962240703,4.116,4384.3,4383.7,3.426078]
[1756962241277,4.116,4384.3,4383.7,0.772]
[1756962241477,3.025,4384.8,4383.7,3.053178]
[1756962241706,3.0,4384.4,4383.7,3.053178]
[1756962241924,5.73556254,4384.4,4383.7,0.772]
[1756962242225,4.116,4384.2,4383.7,0.772]
[1756962242380,3.3165,4383.8,4382.6,0.4866]
[1756962242581,3.32208496,4383.8,4382.6,0.4866]
[1756962242780,2.28142919,4383.3,4382.6,0.4866]
[1756962243280,2.28703335,4383.2,4382.6,0.4866]
[1756962243530,0.1144,4382.7,4382.6,0.4866]
[1756962243701,0.1144,4382.7,4382.1,2.88300279]
[1756962243902,0.1144,4382.7,4382.3,2.28189112]
[1756962244101,0.1144,4382.7,4382.2,2.61942342]
[1756962244290,0.1144,4382.7,4382.3,0.4866]
[1756962244607,0.1144,4382.7,4382.1,0.1144]
[1756962244810,0.2915,4382.2,4381.7,2.28221111]
[1756962245117,2.28184643,4382.5,4381.6,2.28225062]
[1756962245409,0.1144,4382.2,4381.5,0.1144]
[1756962245576,0.1144,4382.2,4381.6,2.28226712]
[1756962245777,0.1144,4382.2,4381.5,0.1144]
[1756962245997,0.1144,4382.2,4381.9,0.4866]
[1756962246510,0.1144,4382.2,4382.1,0.2854]
[1756962246692,0.1144,4382.3,4382.2,2.28193425]
[1756962246891,27.05960961,4383.4,4382.3,2.28188887]
[1756962246892,5.28144068,4383.2,4382.3,2.28188887]
[1756962247088,0.1144,4382.7,4382.4,0.4866]
[1756962247408,0.1144,4382.7,4382.6,2.56715055]
[1756962247796,4.12,4383.5,4382.8,2.28162826]
[1756962248120,4.12,4383.5,4382.6,2.76834353]
[1756962248121,0.1144,4383.0,4382.6,2.76834353]
[1756962248429,2.28179538,4382.6,4381.5,0.4866]
[1756962248577,2.28181505,4382.5,4381.6,2.28226064]
[1756962248779,4.12358496,4382.6,4381.5,0.4866]
[1756962248780,4.118,4382.6,4381.5,2.76891591]
[1756962248987,2.28191951,4382.3,4381.5,0.4866]
[1756962249213,4.118,4382.6,4381.5,0.4866]
[1756962249510,0.30430922,4383.1,4381.9,0.4866]
[1756962249511,2.28159792,4382.9,4381.9,0.4866]
[1756962249715,2.73640778,4382.7,4381.8,2.31114884]
[1756962249915,2.28176302,4382.6,4381.8,2.31114884]
[1756962250286,2.73641055,4382.7,4381.9,2.28211012]
[1756962250508,2.28175061,4382.6,4381.9,2.28211012]
[1756962250704,2.28175061,4382.6,4381.8,2.31115761]
[1756962250923,2.73640747,4382.7,4381.9,2.28210664]
[1756962251606,2.28177371,4382.6,4381.8,0.029]
[1756962251809,2.73640683,4382.7,4381.8,0.029]
[1756962252121,0.4547,4382.7,4381.8,0.029]
[1756962252289,2.28185943,4382.4,4381.8,0.029]
[1756962252784,0.4641,4382.9,4381.8,0.029]
[1756962252993,2.28199897,4382.2,4381.8,0.029]
[1756962253194,0.2915,4381.9,4381.8,0.029]
[1756962253384,2.57361506,4381.9,4381.8,0.029]
[1756962253586,3.02831506,4381.9,4381.8,0.029]
[1756962254212,3.49241506,4381.9,4381.8,0.029]
[1756962254893,3.02831506,4381.9,4381.8,0.029]
[1756962255328,7.13731506,4381.9,4381.8,0.029]
[1756962255528,7.60141506,4381.9,4381.8,0.029]
[1756962255894,10.60141506,4381.9,4381.8,0.029]
[1756962258429,10.71581506,4381.9,4381.8,0.029]
[1756962259603,10.25171506,4381.9,4381.8,0.029]
[1756962260232,10.71581506,4381.9,4381.8,0.029]
[1756962260535,11.81212428,4381.9,4381.8,0.029]
[1756962262516,6.91112428,4381.9,4381.8,0.029]
[1756962262715,6.14271506,4381.9,4381.8,0.029]
[1756962262910,10.23371506,4381.9,4381.8,0.029]
[1756962263114,11.00212428,4381.9,4381.8,0.029]
[1756962263315,11.79412428,4381.9,4381.8,0.029]
[1756962265057,11.91171554,4381.9,4381.8,0.029]
[1756962265638,11.79412428,4381.9,4381.8,0.029]
[1756962267819,2.28237549,4381.4,4381.3,0.08869926]
[1756962268017,6.48336045,4381.4,4381.3,0.08869926]
[1756962268320,7.22397549,4381.4,4381.3,0.08869926]
[1756962269414,7.68807549,4381.4,4381.3,0.08869926]
[1756962270043,7.22397549,4381.4,4381.3,0.08869926]
[1756962272034,10.70487549,4381.4,4381.3,0.08869926]
[1756962272462,11.49687549,4381.4,4381.3,0.08869926]
[1756962273829,11.01597549,4381.4,4381.3,0.08869926]
[1756962274138,10.22397549,4381.4,4381.3,0.08869926]
[1756962274340,9.76927549,4381.4,4381.3,0.08869926]
[1756962275056,5.39677549,4381.4,4381.3,0.08869926]
[1756962275261,9.46377549,4381.4,4381.3,0.38619926]
[1756962275559,17.09338471,4381.4,4381.3,0.08869926]
[1756962275759,16.78408471,4381.4,4381.3,0.08869926]
[1756962276758,17.09338471,4381.4,4381.3,0.08869926]
[1756962277330,17.55668471,4381.4,4381.3,0.08869926]
[1756962278072,17.09338471,4381.4,4381.3,0.08869926]
[1756962278470,16.78408471,4381.4,4381.3,0.08869926]
[1756962279830,12.72108471,4381.4,4381.3,0.08869926]
[1756962280035,12.72108471,4381.4,4381.3,0.38619926]
[1756962280036,16.77708471,4381.4,4381.3,0.38619926]
[1756962281133,11.1904,4381.4,4381.3,0.87779926]
[1756962281375,13.47277549,4381.4,4381.3,0.87779926]
[1756962283274,13.47277549,4381.4,4381.3,0.38619926]
[1756962283460,16.78207549,4381.4,4381.3,0.08869926]
[1756962283661,17.54968471,4381.4,4381.3,0.08869926]
[1756962284046,18.82258471,4381.4,4381.3,0.08869926]
[1756962284247,17.72627549,4381.4,4381.3,0.08869926]
[1756962284648,17.24537549,4381.4,4381.3,0.08869926]
[1756962284900,16.47277549,4381.4,4381.3,0.08869926]
[1756962285365,16.47277549,4381.4,4381.3,0.38619926]
[1756962286859,9.45277549,4381.4,4381.3,0.08869926]
[1756962287063,9.75708471,4381.4,4381.3,0.08869926]
[1756962287472,9.64268471,4381.4,4381.3,0.08869926]
[1756962287672,9.45277549,4381.4,4381.3,0.08869926]
[1756962288321,3.1144,4381.4,4381.3,0.87779926]
[1756962288477,9.45277549,4381.4,4381.3,0.87779926]
[1756962288675,7.1704,4381.4,4381.3,0.87779926]
[1756962289011,9.45277549,4381.4,4381.3,0.87779926]
[1756962289318,7.1704,4381.4,4381.3,0.87779926]
[1756962289473,4.1704,4381.4,4381.3,1.25069926]
[1756962290088,0.1144,4381.4,4381.3,1.25069926]
[1756962290286,0.001,4381.9,4381.3,1.37663389]
[1756962290512,0.001,4381.9,4381.4,0.8645]
[1756962290513,0.1154,4381.9,4381.4,0.8645]
[1756962290807,0.1154,4381.9,4381.3,0.51213389]
[1756962290808,0.1154,4381.9,4381.8,2.57966714]
[1756962291011,0.1154,4381.9,4381.8,3.44416714]
[1756962291225,0.001,4381.9,4381.8,4.01680808]
[1756962291402,0.001,4381.9,4381.8,9.82780808]
[1756962294106,0.001,4381.9,4381.8,9.99770224]
[1756962294409,0.001,4381.9,4381.8,17.79770224]
[1756962297087,0.001,4381.9,4381.8,18.58970224]
[1756962297916,0.001,4381.9,4381.8,24.07370224]
[1756962299796,0.001,4381.9,4381.8,26.90380808]
[1756962300503,0.001,4381.9,4381.8,26.90180808]
[1756962301427,0.001,4381.9,4381.8,27.01620808]
[1756962302129,0.001,4381.9,4381.8,22.96220808]
[1756962302295,0.001,4381.9,4381.8,27.01620808]
[1756962302499,0.001,4381.9,4381.8,11.56315879]
[1756962302698,0.001,4381.9,4381.8,14.43366714]
[1756962302922,0.001,4381.9,4381.8,14.13616714]
[1756962303228,0.2973,4381.9,4381.8,6.33616714]
[1756962303402,0.2973,4381.9,4381.8,2.28216714]
[1756962303595,0.2973,4381.9,4381.8,6.33516714]
[1756962303795,0.001,4381.9,4381.8,7.90674629]
[1756962304817,0.001,4381.9,4381.8,8.19734629]
[1756962305220,0.2973,4381.9,4381.8,7.90674629]
[1756962305538,0.001,4381.9,4381.8,7.90674629]
[1756962305725,0.001,4381.9,4381.8,8.19734629]
[1756962307502,0.001,4381.9,4381.8,7.90674629]
[1756962307844,1.2374,4381.9,4381.8,2.28216714]
[1756962308012,1.2374,4381.9,4381.8,6.33516714]
[1756962309009,1.2374,4381.9,4381.8,4.053]
[1756962309323,1.2374,4381.9,4381.6,1.754]
[1756962309527,0.2973,4381.9,4381.8,4.053]
[1756962310109,1.2374,4381.9,4381.8,4.053]
[1756962310318,1.2374,4381.9,4381.6,1.754]
[1756962310520,0.9401,4381.8,4381.3,0.08869926]
[1756962310720,2.28221922,4381.7,4381.3,0.08869926]
[1756962310924,0.2963,4381.4,4381.3,0.08869926]
[1756962311414,1.2364,4381.4,4381.3,0.08869926]
[1756962312036,3.52436045,4381.4,4381.3,0.08869926]
[1756962312340,3.51877549,4381.4,4381.3,0.08869926]
[1756962312509,3.63317549,4381.4,4381.3,0.08869926]
[1756962315641,1.3508,4381.4,4381.3,0.08869926]
[1756962316257,0.8581,4381.4,4381.3,0.08869926]
[1756962318150,0.4107,4381.4,4381.3,0.08869926]
[1756962318358,3.63317549,4381.4,4381.3,0.08869926]
[1756962319854,1.3508,4381.4,4381.3,0.08869926]
[1756962320524,3.63317549,4381.4,4381.3,0.08869926]
[1756962321960,3.63317549,4381.4,4380.8,0.029]
[1756962321961,2.28242758,4381.3,4379.0,0.0087]
[1756962322169,2.28315714,4379.9,4379.0,0.0087]
[1756962322323,2.28315714,4379.9,4377.8,0.025]
[1756962322325,0.792,4379.7,4377.8,0.025]
[1756962322527,18.71718795,4378.5,4377.8,0.025]
[1756962322721,5.58050018,4377.9,4377.8,0.025]
[1756962322926,5.58050018,4377.9,4375.8,0.025]
[1756962322927,3.0,4377.8,4375.8,0.025]
[1756962323138,5.28461766,4377.1,4375.8,0.025]
[1756962323364,5.58102206,4376.9,4375.8,0.025]
[1756962323671,9.63402206,4376.9,4375.8,0.025]
[1756962323820,10.57412206,4376.9,4375.8,0.025]
[1756962324224,0.4474,4377.5,4376.2,2.972]
[1756962324459,0.31516738,4378.4,4376.8,0.8154]
[1756962324460,0.53899595,4378.0,4376.8,0.8154]
[1756962324625,0.4474,4378.0,4376.8,0.8154]
[1756962324952,3.0,4378.2,4376.8,0.8154]
[1756962324953,1.1341448,4378.5,4376.9,2.56482531]
[1756962325155,0.4474,4378.5,4376.9,0.31002531]
[1756962325452,5.77665713,4378.4,4376.8,0.025]
[1756962325654,2.2842761,4377.8,4376.8,0.025]
[1756962325836,3.0,4377.6,4376.8,0.025]
[1756962326222,0.4474,4377.5,4376.8,0.025]
[1756962326454,1.13413694,4378.5,4377.5,0.2906]
[1756962326657,1.755,4378.6,4377.9,2.28419464]
[1756962326823,0.4474,4378.5,4377.5,2.2844089]
[1756962327024,0.45298496,4378.5,4376.9,0.4998]
[1756962327221,0.4474,4378.5,4377.8,2.28423772]
[1756962327453,4.065,4378.7,4377.0,4.29298]
[1756962327454,0.2963,4377.9,4377.0,4.29298]
[1756962328225,2.2840698,4378.2,4377.1,2.28461141]
[1756962328425,3.0,4378.3,4377.1,2.28461141]
[1756962328426,5.28401294,4378.3,4377.1,2.28456909]
[1756962328644,5.2839915,4378.3,4377.1,2.28456909]
[1756962328957,3.0,4378.2,4377.0,4.29298]
[1756962329146,3.0,4378.3,4377.3,2.28449796]
[1756962329348,2.7313773,4378.4,4377.1,0.9810012]
[1756962329349,0.4474,4378.4,4377.1,0.9810012]
[1756962329662,1.755,4379.2,4377.8,2.28423014]
[1756962329663,3.0,4378.7,4377.8,2.28423014]
[1756962329856,3.0,4378.7,4377.2,0.9227]
[1756962329857,3.0,4378.7,4377.2,0.4229]
[1756962330057,0.4663,4378.6,4377.3,4.63368812]
[1756962330258,2.28398619,4378.4,4377.3,6.91820061]
[1756962330474,3.0,4378.5,4377.3,6.91820061]
[1756962330475,0.025,4378.8,4377.3,4.63368812]
[1756962330686,0.025,4378.8,4378.0,2.28411375]
[1756962330853,0.025,4378.8,4377.9,2.28418219]
[1756962331178,0.025,4378.8,4377.8,0.4694]
[1756962331575,0.025,4378.8,4377.7,1.756]
[1756962331576,0.4663,4378.7,4377.7,1.756]
[1756962331859,2.28395602,4378.4,4377.7,1.756]
[1756962332068,0.1144,4377.9,4377.7,1.756]
[1756962333236,0.1144,4377.9,4377.3,0.004]
[1756962333466,0.1144,4377.6,4377.3,2.28850586]
[1756962333637,0.1144,4377.6,4377.5,0.3005]
[1756962333839,0.4654,4378.6,4377.5,0.3005]
[1756962333840,0.1144,4377.9,4377.5,0.3005]
[1756962334158,0.1144,4377.9,4377.7,2.28430454]
[1756962334347,0.1144,4377.9,4377.8,0.7699]
[1756962334548,0.1144,4377.9,4377.8,0.3005]
[1756962334865,0.1144,4377.9,4377.4,2.2844572]
[1756962335028,0.1144,4377.9,4377.5,0.4694]
[1756962335233,0.1144,4377.9,4377.8,0.3005]
[1756962335738,0.1144,4377.9,4377.5,2.28440034]
[1756962335937,0.1144,4377.9,4377.5,4.065]
[1756962336139,0.1144,4377.9,4377.5,6.34940732]
[1756962336565,0.1144,4377.9,4377.5,6.81880732]
[1756962336737,0.1144,4377.9,4377.6,2.28435]
[1756962337445,0.1144,4377.9,4377.5,6.81880211]
[1756962337650,0.1144,4377.9,4377.5,4.065]
[1756962337863,0.1144,4377.9,4377.5,6.34940686]
[1756962338247,0.1144,4377.9,4377.6,2.28434297]
[1756962338451,0.71167091,4378.8,4377.8,0.3005]
[1756962338652,0.025,4378.8,4378.7,2.28378285]
[1756962338853,0.025,4378.8,4378.7,7.11068285]
[1756962339091,0.025,4378.8,4378.7,4.058]
[1756962339588,0.025,4378.8,4378.7,4.3585]
[1756962339746,0.025,4378.8,4378.7,7.11168285]
[1756962341065,0.025,4378.8,4378.7,9.29058285]
[1756962341678,0.025,4378.8,4378.7,9.40498285]
[1756962341874,0.025,4378.8,4378.7,10.57386938]
[1756962342258,1e-08,4378.8,4378.7,10.57386938]
[1756962342459,1e-08,4378.8,4378.7,11.36586938]
[1756962342658,1e-08,4378.8,4378.7,19.16586938]
[1756962343660,1e-08,4378.8,4378.7,22.16586938]
[1756962344259,1e-08,4379.8,4379.7,3.07526141]
[1756962344465,1e-08,4379.8,4379.7,3.49718755]
[1756962344663,1e-08,4379.8,4379.7,4.71282016]
[1756962344864,1e-08,4379.8,4379.7,12.48998755]
[1756962345265,1e-08,4379.8,4379.7,15.48998755]
[1756962345661,1e-08,4380.8,4380.7,3.0747402]
[1756962345881,1e-08,4380.8,4380.7,9.55772359]
[1756962346209,1e-08,4380.8,4380.7,10.72769619]
[1756962346392,1e-08,4380.8,4380.7,6.67269619]
[1756962346571,1e-08,4380.8,4380.7,10.72769619]
[1756962347505,1e-08,4380.8,4380.7,5.45779619]
[1756962347716,1.23780001,4380.8,4379.6,1.755]
[1756962347997,1.23780001,4380.8,4378.8,0.025]
[1756962347998,3.0,4379.9,4378.8,0.025]
[1756962348161,3.0,4379.7,4378.8,0.025]
[1756962348358,0.9317,4379.8,4378.9,2.357]
[1756962348719,0.9317,4379.8,4378.9,2.5952]
[1756962348894,0.4663,4379.7,4378.9,2.5952]
[1756962349285,3.4654,4379.8,4378.9,2.357]
[1756962349286,0.3061,4379.0,4378.9,2.357]
[1756962349489,1.2378,4379.0,4378.8,1.78]
[1756962349663,0.3061,4379.0,4378.9,4.074]
[1756962350271,0.7724,4379.0,4378.9,4.072]
[1756962351082,0.4654,4379.4,4378.9,4.072]
[1756962351268,0.4663,4380.6,4378.9,4.6572]
[1756962351475,0.9317,4380.5,4379.4,2.28339222]
[1756962351675,0.9317,4380.5,4379.5,4.073]
[1756962352005,0.4663,4380.5,4380.1,2.28301385]
[1756962352204,0.4663,4380.5,4380.2,6.35598804]
[1756962352391,0.4663,4380.5,4380.2,4.073]
[1756962352598,1e-08,4380.8,4380.5,2.28283589]
[1756962352798,1e-08,4380.8,4380.7,2.2827402]
[1756962352971,1e-08,4380.8,4380.7,6.3547402]
[1756962354509,1e-08,4380.8,4380.7,7.1246402]